[Event "Turkish Club Cup 2019"]
[Site "Konya"]
[Date "2019.07.19"]
[Round "6"]
[White "Guder, Eyup Sabri"]
[Black "Kul, Ozdemir Efe"]
[Result "1/2-1/2"]
[ECO "E92"]
[WhiteElo "1909"]
[BlackElo "1974"]
[Annotator "NA"]
[PlyCount "67"]
[EventDate "2019.07.16"]
[EventType "team-tourn"]
[EventCountry "TUR"]
[SourceTitle "playchess.com"]
[Source "ChessBase"]
[SourceQuality "1"]
[TimeControl "5400+30"]

1. c4 {[%emt 0:00:30]} Nf6 {[%emt 0:00:30]} 2. d4 {[%emt 0:00:30]} g6 {[%emt 0:00:30]} 3. Nc3 {[%emt 0:06:30]} Bg7 {[%emt 0:06:30]} 4. Nf3 {[%emt 0:08:30]} d6 {[%emt 0:02:30]} 5. e4 {[%emt 0:01:30]} O-O {[%emt 0:04:30]} 6. Be2 {[%emt 0:00:30]} e5 {[%emt 0:05:30]} 7. dxe5 {[%emt 0:05:30]} dxe5 {[%emt 0:09:30]} 8. Qxd8 {[%emt 0:00:30]} Rxd8 {[%emt 0:00:30]} 9. Nxe5 {[%emt 0:00:30]} Nxe4 {[%emt 0:06:30]} 10. Nxe4 {[%emt 0:06:30]} Bxe5 {[%emt 0:00:30]} 11. Bg5 {[%emt 0:11:30]} Re8 {[%emt 0:11:30]} 12. Nf6+ {[%emt 0:02:30]} Bxf6 {[%emt 0:00:30]} 13. Bxf6 {[%emt 0:00:00]} Bf5 {[%emt 0:03:30]} 14. Rd1 {[%emt 0:13:00]} Nd7 {[%emt 0:03:30]} 15. Bg5 {[%emt 0:02:30]} Ne5 {[%emt 0:05:30]} 16. O-O {[%emt 0:01:30]} f6 {[%emt 0:01:30]} 17. Be3 {[%emt 0:01:30]} Ng4 {[%emt 0:02:30]} 18. Bxg4 {[%emt 0:00:30]} Bxg4 {[%emt 0:00:30]} 19. Rd2 {[%emt 0:00:30]} b6 {[%emt 0:02:30]} 20. Re1 {[%emt 0:00:30]} Rad8 {[%emt 0:00:30]} 21. f3 {[%emt 0:00:30]} Rxd2 {[%emt 0:01:30]} 22. Bxd2 {[%emt 0:00:30]} Rxe1+ {[%emt 0:00:30]} 23. Bxe1 {[%emt 0:00:30]} Be6 {[%emt 0:00:30]} 24. b3 {[%emt 0:00:30]} Kf7 {[%emt 0:03:30]} 25. Kf2 {[%emt 0:00:30]} a6 {[%emt 0:00:00]} 26. Ke3 {[%emt 0:00:30]} Bc8 {[%emt 0:01:00]} 27. g3 {[%emt 0:01:30]} Ke6 {[%emt 0:00:30]} 28. Bc3 {[%emt 0:00:30]} Bb7 {[%emt 0:00:30]} 29. f4 {[%emt 0:00:00]} Bg2 {[%emt 0:00:30]} 30. a3 {[%emt 0:01:00]} h5 {[%emt 0:00:30]} 31. h4 {[%emt 0:01:30]} Bh3 {[%emt 0:02:30]} 32. Bb2 {[%emt 0:02:30]} Bg4 {[%emt 0:00:30]} 33. Bc3 {[%emt 0:00:30]} Bf5 {[%emt 0:00:00]} 34. Bb2 {[%emt 0:00:30]} 1/2-1/2

[Event "Turkish Club Cup 2019"]
[Site "Konya"]
[Date "2019.07.19"]
[Round "6"]
[White "Cam, Vedat"]
[Black "Gok, Emre"]
[Result "1-0"]
[ECO "E27"]
[WhiteElo "1907"]
[BlackElo "1825"]
[Annotator "NA"]
[PlyCount "145"]
[EventDate "2019.07.16"]
[EventType "team-tourn"]
[EventCountry "TUR"]
[SourceTitle "playchess.com"]
[Source "ChessBase"]
[SourceQuality "1"]
[TimeControl "5400+30"]

1. c4 {[%emt 0:00:30]} e6 {[%emt 0:00:30]} 2. d4 {[%emt 0:04:30]} Nf6 {[%emt 0:00:30]} 3. Nc3 {[%emt 0:00:30]} Bb4 {[%emt 0:00:00]} 4. a3 {[%emt 0:02:30]} Bxc3+ {[%emt 0:00:00]} 5. bxc3 {[%emt 0:00:00]} O-O {[%emt 0:01:30]} 6. Bg5 {[%emt 0:00:00]} h6 {[%emt 0:04:30]} 7. Bh4 {[%emt 0:05:30]} c5 {[%emt 0:00:30]} 8. Bxf6 {[%emt 0:02:30]} Qxf6 {[%emt 0:00:30]} 9. e3 {[%emt 0:00:30]} b6 {[%emt 0:01:30]} 10. Nf3 {[%emt 0:00:30]} Bb7 {[%emt 0:00:30]} 11. Bd3 {[%emt 0:01:30]} Nc6 {[%emt 0:03:30]} 12. O-O {[%emt 0:03:30]} d6 {[%emt 0:04:30]} 13. Nd2 {[%emt 0:01:30]} Na5 {[%emt 0:06:30]} 14. Qe2 {[%emt 0:06:30]} Qe7 {[%emt 0:05:30]} 15. e4 {[%emt 0:02:30]} e5 {[%emt 0:00:30]} 16. Qe3 {[%emt 0:06:30]} exd4 {[%emt 0:08:30]} 17. cxd4 {[%emt 0:00:30]} Nc6 {[%emt 0:00:00]} 18. d5 {[%emt 0:00:30]} Nd4 {[%emt 0:03:00]} 19. f4 {[%emt 0:00:30]} Rfe8 {[%emt 0:05:30]} 20. Qg3 {[%emt 0:12:30]} Bc8 {[%emt 0:05:30]} 21. Rae1 {[%emt 0:01:30]} Bd7 {[%emt 0:00:30]} 22. Nf3 {[%emt 0:02:30]} Nxf3+ {[%emt 0:00:30]} 23. Qxf3 {[%emt 0:01:30]} Rab8 {[%emt 0:16:30]} 24. e5 {[%emt 0:02:30]} Qf8 {[%emt 0:01:30]} 25. Qe4 {[%emt 0:11:30]} g6 {[%emt 0:01:30]} 26. e6 {[%emt 0:01:30]} f5 {[%emt 0:05:30]} 27. Qf3 {[%emt 0:02:30]} Ba4 {[%emt 0:01:30]} 28. g4 {[%emt 0:00:30]} b5 {[%emt 0:02:30]} 29. gxf5 {[%emt 0:03:30]} bxc4 {[%emt 0:00:30]} 30. Bb1 {[%emt 0:02:30]} gxf5 {[%emt 0:05:25]} 31. Qh5 {[%emt 0:00:30]} Re7 {[%emt 0:03:18]} 32. Kh1 {[%emt 0:09:04]} Rxb1 {[%emt 0:05:42]} 33. Rxb1 {[%emt 0:01:12]} Bc2 {[%emt 0:00:02]} 34. Rg1+ {[%emt 0:03:01]} Rg7 {[%emt 0:00:27]} 35. Qf7+ {[%emt 0:05:29]} Qxf7 {[%emt 0:00:49]} 36. exf7+ {[%emt 0:00:08]} Kh7 {[%emt 0:02:29]} 37. f8=N+ {[%emt 0:02:11]} Kh8 {[%emt 0:03:30]} 38. Rbe1 {[%emt 0:02:02]} Be4+ {[%emt 0:00:30]} 39. Rxe4 {[%emt 0:02:22]} fxe4 {[%emt 0:02:04]} 40. Rc1 {[%emt 0:00:07]} Rf7 {[%emt 0:00:56]} 41. Ne6 {[%emt 0:00:12]} Rf5 {[%emt 0:01:20]} 42. Rxc4 {[%emt 0:00:30]} Rxd5 {[%emt 0:00:00]} 43. Rxe4 {[%emt 0:00:16]} Kg8 {[%emt 0:00:11]} 44. Ra4 {[%emt 0:00:41]} Kf7 {[%emt 0:00:02]} 45. Nd8+ {[%emt 0:00:30]} Kf6 {[%emt 0:00:30]} 46. Rxa7 {[%emt 0:00:35]} Kf5 {[%emt 0:00:41]} 47. Rf7+ {[%emt 0:00:23]} Ke4 {[%emt 0:00:00]} 48. Kg2 {[%emt 0:00:20]} c4 {[%emt 0:00:19]} 49. Nc6 {[%emt 0:01:05]} c3 {[%emt 0:00:45]} 50. Nb4 {[%emt 0:00:46]} Rd2+ {[%emt 0:00:25]} 51. Kg3 {[%emt 0:00:00]} d5 {[%emt 0:01:12]} 52. Re7+ {[%emt 0:00:02]} Kd4 {[%emt 0:00:31]} 53. f5 {[%emt 0:00:27]} Kc4 {[%emt 0:01:44]} 54. f6 {[%emt 0:00:13]} Rd1 {[%emt 0:00:00]} 55. Kf2 {[%emt 0:00:45]} Rd2+ {[%emt 0:00:34]} 56. Ke1 {[%emt 0:01:12]} Rd4 {[%emt 0:00:07]} 57. f7 {[%emt 0:00:58]} Rf4 {[%emt 0:00:01]} 58. Rc7+ {[%emt 0:00:02]} Kd4 {[%emt 0:00:58]} 59. Rxc3 {[%emt 0:00:49]} Rxf7 {[%emt 0:00:52]} 60. Rd3+ {[%emt 0:00:30]} Kc4 {[%emt 0:00:01]} 61. Rxd5 {[%emt 0:00:00]} Ra7 {[%emt 0:00:19]} 62. Rd4+ {[%emt 0:00:18]} Kc3 {[%emt 0:01:02]} 63. Rd3+ {[%emt 0:00:02]} Kc4 {[%emt 0:00:23]} 64. Kf2 {[%emt 0:00:30]} Rg7 {[%emt 0:00:44]} 65. Rd6 {[%emt 0:00:18]} Ra7 {[%emt 0:00:48]} 66. Nc2 {[%emt 0:00:28]} Kc3 {[%emt 0:00:05]} 67. Ne1 {[%emt 0:00:37]} h5 {[%emt 0:00:00]} 68. Kg3 {[%emt 0:00:21]} Ra4 {[%emt 0:00:01]} 69. Rd3+ {[%emt 0:01:05]} Kb2 {[%emt 0:00:06]} 70. h3 {[%emt 0:00:30]} h4+ {[%emt 0:00:11]} 71. Kf2 {[%emt 0:00:10]} Rf4+ {[%emt 0:00:04]} 72. Nf3 {[%emt 0:00:33]} Kc2 {[%emt 0:00:03]} 73. Rd4 {[%emt 0:00:17]} 1-0

[Event "Turkish Club Cup 2019"]
[Site "Konya"]
[Date "2019.07.19"]
[Round "6"]
[White "Taskiran, Recep"]
[Black "Ersahin, Bulent"]
[Result "0-1"]
[ECO "B30"]
[WhiteElo "1898"]
[BlackElo "2179"]
[Annotator "NA"]
[PlyCount "78"]
[EventDate "2019.07.16"]
[EventType "team-tourn"]
[EventCountry "TUR"]
[SourceTitle "playchess.com"]
[Source "ChessBase"]
[SourceQuality "1"]
[TimeControl "5400+30"]

1. e4 {[%emt 0:00:30]} c5 {[%emt 0:00:30]} 2. Nf3 {[%emt 0:00:00]} Nc6 {[%emt 0:00:30]} 3. Bb5 {[%emt 0:00:00]} e6 {[%emt 0:00:00]} 4. O-O {[%emt 0:00:30]} Nge7 {[%emt 0:00:00]} 5. d4 {[%emt 0:02:30]} cxd4 {[%emt 0:00:00]} 6. c3 {[%emt 0:03:30]} a6 {[%emt 0:09:00]} 7. Bxc6 {[%emt 0:00:30]} bxc6 {[%emt 0:00:30]} 8. cxd4 $11 {[%emt 0:01:30]} Ng6 {[%emt 0:00:30]} 9. d5 {[%emt 0:00:30]} cxd5 {[%emt 0:02:30]} 10. exd5 {[%emt 0:03:30]} Be7 {[%emt 0:05:30]} 11. Nc3 {[%emt 0:00:30]} O-O {[%emt 0:00:30]} 12. d6 {[%emt 0:00:30]} Bf6 {[%emt 0:00:30]} 13. Ne4 {[%emt 0:00:30]} Bb7 {[%emt 0:00:30]} 14. Re1 {[%emt 0:04:30]} Rc8 {[%emt 0:03:30]} 15. Qd3 {[%emt 0:04:30]} Bxe4 {[%emt 0:12:30]} 16. Rxe4 {[%emt 0:04:30]} Rc6 {[%emt 0:00:30]} 17. Rc4 {[%emt 0:02:30]} Qb6 {[%emt 0:04:30]} 18. Rxc6 {[%emt 0:00:30]} Qxc6 {[%emt 0:00:00]} 19. Be3 {[%emt 0:00:30]} Rc8 {[%emt 0:08:00]} 20. Kf1 {[%emt 0:27:30]} Qb7 {[%emt 0:19:30]} 21. Rb1 {[%emt 0:03:30]} Rc6 {[%emt 0:03:30]} 22. b4 {[%emt 0:01:30]} Rc3 {[%emt 0:02:30]} 23. Qe2 {[%emt 0:00:30]} Qe4 {[%emt 0:04:30]} 24. Rd1 {[%emt 0:07:30]} Qc6 {[%emt 0:01:30]} 25. h3 {[%emt 0:07:30]} h6 {[%emt 0:00:30]} 26. Ne1 {[%emt 0:10:46]} Be5 {[%emt 0:01:45]} 27. Qd2 {[%emt 0:01:42]} Qc4+ {[%emt 0:04:06]} 28. Qe2 {[%emt 0:00:38]} Qxe2+ {[%emt 0:00:39]} 29. Kxe2 {[%emt 0:00:03]} Ra3 {[%emt 0:00:56]} 30. Rd2 {[%emt 0:01:22]} Bc3 {[%emt 0:01:03]} 31. Rc2 {[%emt 0:00:09]} Bxb4 {[%emt 0:00:59]} 32. Rc8+ {[%emt 0:06:57]} Kh7 {[%emt 0:01:00]} 33. Nc2 {[%emt 0:00:43]} Rxa2 {[%emt 0:00:33]} 34. Kd1 {[%emt 0:00:27]} Bxd6 {[%emt 0:01:10]} 35. Rd8 {[%emt 0:00:33]} Ne5 {[%emt 0:02:23]} 36. f4 {[%emt 0:02:19]} Be7 {[%emt 0:02:21]} 37. Rc8 {[%emt 0:00:26]} Nc6 {[%emt 0:01:43]} 38. Rc7 {[%emt 0:00:12]} Nb4 {[%emt 0:00:21]} 39. Ne1 {[%emt 0:01:11]} Nd5 {[%emt 0:00:07]} 0-1

[Event "Turkish Club Cup 2019"]
[Site "Konya"]
[Date "2019.07.19"]
[Round "6"]
[White "Aydin, Ismail"]
[Black "Ozoglu, Berker"]
[Result "1-0"]
[ECO "D02"]
[WhiteElo "1896"]
[BlackElo "1854"]
[Annotator "NA"]
[PlyCount "117"]
[EventDate "2019.07.16"]
[EventType "team-tourn"]
[EventCountry "TUR"]
[SourceTitle "playchess.com"]
[Source "ChessBase"]
[SourceQuality "1"]
[TimeControl "5400+30"]

1. d4 {[%emt 0:00:30]} Nf6 {[%emt 0:01:30]} 2. Nf3 {[%emt 0:00:00]} b6 {[%emt 0:00:00]} 3. Bf4 {[%emt 0:00:00]} Bb7 {[%emt 0:00:00]} 4. e3 {[%emt 0:00:00]} e6 {[%emt 0:00:30]} 5. Bd3 {[%emt 0:00:00]} d5 {[%emt 0:00:30]} 6. Nbd2 {[%emt 0:00:30]} c5 {[%emt 0:00:30]} 7. c3 {[%emt 0:00:00]} Bd6 {[%emt 0:00:30]} 8. Bg3 {[%emt 0:00:00]} Bxg3 {[%emt 0:01:30]} 9. hxg3 {[%emt 0:00:00]} Nbd7 {[%emt 0:03:30]} 10. Qe2 {[%emt 0:00:00]} Ne4 {[%emt 0:00:30]} 11. Rd1 {[%emt 0:02:30]} O-O {[%emt 0:10:30]} 12. Ne5 {[%emt 0:03:30]} f5 {[%emt 0:03:30]} 13. Nxd7 {[%emt 0:09:30]} Qxd7 {[%emt 0:01:30]} 14. Bxe4 {[%emt 0:06:30]} dxe4 {[%emt 0:00:30]} 15. dxc5 {[%emt 0:02:30]} bxc5 {[%emt 0:03:30]} 16. Nc4 {[%emt 0:13:30]} Qc7 {[%emt 0:03:30]} 17. Qh5 {[%emt 0:12:30]} g6 {[%emt 0:17:30]} 18. Qh4 {[%emt 0:11:30]} Rf7 {[%emt 0:09:30]} 19. Qf4 {[%emt 0:07:30]} Ba6 {[%emt 0:12:30]} 20. Qxc7 {[%emt 0:11:19]} Rxc7 {[%emt 0:00:30]} 21. Ne5 {[%emt 0:00:00]} Rb8 {[%emt 0:07:30]} 22. b3 {[%emt 0:00:19]} Bd3 {[%emt 0:00:30]} 23. Nxd3 {[%emt 0:00:52]} exd3 {[%emt 0:00:00]} 24. c4 {[%emt 0:00:55]} Rd7 {[%emt 0:01:00]} 25. f4 {[%emt 0:00:04]} e5 {[%emt 0:00:00]} 26. fxe5 {[%emt 0:02:26]} Re8 {[%emt 0:00:00]} 27. Kd2 {[%emt 0:01:17]} Rxe5 {[%emt 0:00:30]} 28. Rhe1 {[%emt 0:01:03]} Re4 {[%emt 0:00:30]} 29. Kc3 {[%emt 0:00:06]} Rg4 {[%emt 0:00:30]} 30. Rxd3 {[%emt 0:00:22]} Rxd3+ {[%emt 0:00:30]} 31. Kxd3 {[%emt 0:00:30]} Rxg3 {[%emt 0:00:00]} 32. Re2 {[%emt 0:00:17]} Kf7 {[%emt 0:00:00]} 33. Kd2 {[%emt 0:01:00]} Kf6 {[%emt 0:00:30]} 34. Ke1 {[%emt 0:00:04]} Rg4 {[%emt 0:01:30]} 35. Rd2 {[%emt 0:00:52]} Re4 {[%emt 0:01:30]} 36. Kf2 {[%emt 0:00:59]} a5 {[%emt 0:00:30]} 37. a4 {[%emt 0:01:56]} Re7 {[%emt 0:00:30]} 38. Rd5 {[%emt 0:00:16]} Rc7 {[%emt 0:01:30]} 39. Rd6+ {[%emt 0:05:37]} Kg5 {[%emt 0:00:00]} 40. Ra6 {[%emt 0:00:23]} Rb7 {[%emt 0:00:00]} 41. Rxa5 {[%emt 0:00:17]} Rxb3 {[%emt 0:00:30]} 42. Rxc5 {[%emt 0:00:21]} Rb4 {[%emt 0:00:30]} 43. a5 {[%emt 0:00:16]} Kg4 {[%emt 0:00:00]} 44. Ke2 {[%emt 0:01:05]} Ra4 {[%emt 0:01:00]} 45. Kd3 {[%emt 0:00:09]} h5 {[%emt 0:00:00]} 46. Rb5 {[%emt 0:00:09]} Ra1 {[%emt 0:01:00]} 47. c5 {[%emt 0:00:15]} f4 {[%emt 0:01:30]} 48. exf4 {[%emt 0:02:11]} Kxf4 {[%emt 0:00:00]} 49. Kd4 {[%emt 0:02:33]} Rd1+ {[%emt 0:01:00]} 50. Kc4 {[%emt 0:00:05]} Ke5 {[%emt 0:00:00]} 51. Rb6 {[%emt 0:00:22]} g5 {[%emt 0:01:00]} 52. a6 {[%emt 0:00:35]} h4 {[%emt 0:00:38]} 53. Kb5 {[%emt 0:00:08]} Ra1 {[%emt 0:00:34]} 54. Rg6 {[%emt 0:00:47]} Kf5 {[%emt 0:01:46]} 55. Rg8 {[%emt 0:00:14]} g4 {[%emt 0:00:21]} 56. c6 {[%emt 0:00:19]} h3 {[%emt 0:01:54]} 57. gxh3 {[%emt 0:00:13]} gxh3 {[%emt 0:00:14]} 58. c7 {[%emt 0:00:11]} Rb1+ {[%emt 0:01:16]} 59. Ka4 {[%emt 0:00:05]} 1-0

[Event "Turkish Club Cup 2019"]
[Site "Konya"]
[Date "2019.07.19"]
[Round "6"]
[White "Kaptan, Emre Akin"]
[Black "Kilic, Eray"]
[Result "1/2-1/2"]
[ECO "B14"]
[WhiteElo "1883"]
[BlackElo "1931"]
[Annotator "NA"]
[PlyCount "60"]
[EventDate "2019.07.16"]
[EventType "team-tourn"]
[EventCountry "TUR"]
[SourceTitle "playchess.com"]
[Source "ChessBase"]
[SourceQuality "1"]
[TimeControl "5400+30"]

1. e4 {[%emt 0:00:30]} c6 {[%emt 0:00:30]} 2. d4 {[%emt 0:00:30]} d5 {[%emt 0:00:30]} 3. exd5 {[%emt 0:00:30]} cxd5 {[%emt 0:00:30]} 4. c4 {[%emt 0:00:00]} e6 {[%emt 0:00:30]} 5. Nc3 {[%emt 0:00:00]} Nf6 {[%emt 0:00:00]} 6. Nf3 {[%emt 0:00:00]} Nc6 {[%emt 0:00:00]} 7. c5 {[%emt 0:00:00]} Be7 {[%emt 0:01:30]} 8. Bb5 {[%emt 0:00:00]} O-O {[%emt 0:00:00]} 9. O-O {[%emt 0:00:00]} Qc7 {[%emt 0:03:00]} 10. Bxc6 {[%emt 0:00:30]} bxc6 {[%emt 0:00:00]} 11. b4 {[%emt 0:00:30]} Rb8 {[%emt 0:01:00]} 12. Rb1 {[%emt 0:01:30]} Ba6 {[%emt 0:12:30]} 13. Re1 {[%emt 0:00:00]} Nd7 {[%emt 0:00:30]} 14. g3 {[%emt 0:00:00]} Qc8 {[%emt 0:04:30]} 15. Bf4 {[%emt 0:00:30]} Rb7 {[%emt 0:00:30]} 16. a4 {[%emt 0:00:30]} Bc4 {[%emt 0:01:30]} 17. Qc2 {[%emt 0:03:30]} Bf6 {[%emt 0:06:30]} 18. b5 {[%emt 0:14:30]} cxb5 {[%emt 0:20:30]} 19. Nxb5 {[%emt 0:01:30]} Qc6 {[%emt 0:02:30]} 20. Nd6 {[%emt 0:02:30]} Rxb1 {[%emt 0:03:30]} 21. Rxb1 {[%emt 0:00:00]} Qa6 {[%emt 0:02:30]} 22. Nb5 {[%emt 0:02:00]} Rc8 {[%emt 0:12:30]} 23. Rb4 {[%emt 0:32:30]} Be7 {[%emt 0:09:06]} 24. Bd6 {[%emt 0:15:30]} Bf6 {[%emt 0:04:54]} 25. Nc7 {[%emt 0:07:46]} Qc6 {[%emt 0:03:10]} 26. Qb1 {[%emt 0:04:07]} a5 {[%emt 0:04:22]} 27. Rb7 {[%emt 0:06:19]} Bd3 {[%emt 0:00:39]} 28. Qb3 {[%emt 0:02:34]} Bc4 {[%emt 0:00:07]} 29. Qb1 {[%emt 0:00:08]} Bd3 {[%emt 0:00:48]} 30. Qb3 {[%emt 0:00:36]} Bc4 {[%emt 0:00:04]} 1/2-1/2

[Event "Turkish Club Cup 2019"]
[Site "Konya"]
[Date "2019.07.19"]
[Round "6"]
[White "Atas, Yunus"]
[Black "Guder, Serkan"]
[Result "1/2-1/2"]
[ECO "B13"]
[WhiteElo "1876"]
[BlackElo "1872"]
[Annotator "NA"]
[PlyCount "60"]
[EventDate "2019.07.16"]
[EventType "team-tourn"]
[EventCountry "TUR"]
[SourceTitle "playchess.com"]
[Source "ChessBase"]
[SourceQuality "1"]
[TimeControl "5400+30"]

1. e4 {[%emt 0:00:30]} c6 {[%emt 0:01:30]} 2. d4 {[%emt 0:00:30]} d5 {[%emt 0:01:30]} 3. exd5 {[%emt 0:05:30]} cxd5 {[%emt 0:00:30]} 4. c4 {[%emt 0:01:30]} Nf6 {[%emt 0:06:30]} 5. Nc3 {[%emt 0:10:30]} Nc6 {[%emt 0:04:30]} 6. Nf3 {[%emt 0:01:30]} Bg4 {[%emt 0:08:30]} 7. cxd5 {[%emt 0:03:30]} Nxd5 {[%emt 0:04:30]} 8. Qb3 {[%emt 0:05:30]} Bxf3 {[%emt 0:00:30]} 9. gxf3 {[%emt 0:01:30]} e6 {[%emt 0:11:30]} 10. Qxb7 {[%emt 0:04:30]} Nxd4 {[%emt 0:12:30]} 11. Bb5+ {[%emt 0:04:30]} Nxb5 {[%emt 0:00:30]} 12. Qc6+ {[%emt 0:01:30]} Ke7 {[%emt 0:01:30]} 13. Qxb5 {[%emt 0:01:30]} Qd7 {[%emt 0:03:30]} 14. Qxd7+ {[%emt 0:01:30]} Kxd7 {[%emt 0:00:30]} 15. Nxd5 {[%emt 0:00:00]} exd5 {[%emt 0:00:00]} 16. Be3 {[%emt 0:00:00]} Ke6 {[%emt 0:06:00]} 17. O-O-O {[%emt 0:00:30]} Rc8+ {[%emt 0:02:30]} 18. Kb1 {[%emt 0:00:30]} Bc5 {[%emt 0:00:30]} 19. Rhe1 {[%emt 0:02:30]} Kd6 {[%emt 0:08:30]} 20. Bf4+ {[%emt 0:01:30]} Kc6 {[%emt 0:00:30]} 21. Re2 {[%emt 0:00:30]} Rhd8 {[%emt 0:04:38]} 22. Rc1 {[%emt 0:05:30]} Kb7 {[%emt 0:00:41]} 23. Bg5 {[%emt 0:03:30]} f6 {[%emt 0:00:36]} 24. Rec2 {[%emt 0:01:30]} Bd6 {[%emt 0:03:53]} 25. Rxc8 {[%emt 0:00:30]} Rxc8 {[%emt 0:00:32]} 26. Rxc8 {[%emt 0:00:30]} Kxc8 {[%emt 0:00:30]} 27. Be3 {[%emt 0:00:30]} a6 {[%emt 0:00:30]} 28. h3 {[%emt 0:00:00]} Kd7 {[%emt 0:01:36]} 29. Kc2 {[%emt 0:00:00]} g6 {[%emt 0:00:25]} 30. Kd3 {[%emt 0:00:00]} Kc6 {[%emt 0:01:42]} 1/2-1/2

[Event "Turkish Club Cup 2019"]
[Site "Konya"]
[Date "2019.07.19"]
[Round "6"]
[White "Celik, Berkay"]
[Black "Mollaoglu, Ergin"]
[Result "0-1"]
[ECO "B21"]
[WhiteElo "1876"]
[BlackElo "2309"]
[Annotator "NA"]
[PlyCount "88"]
[EventDate "2019.07.16"]
[EventType "team-tourn"]
[EventCountry "TUR"]
[SourceTitle "playchess.com"]
[Source "ChessBase"]
[SourceQuality "1"]
[TimeControl "5400+30"]

1. e4 {[%emt 0:00:30]} c5 {[%emt 0:00:30]} 2. Na3 {[%emt 0:00:30]} Nc6 {[%emt 0:01:30]} 3. Bb5 {[%emt 0:00:30]} Nf6 {[%emt 0:01:30]} 4. d3 {[%emt 0:00:30]} g6 {[%emt 0:02:30]} 5. c3 {[%emt 0:00:30]} Bg7 {[%emt 0:00:00]} 6. f4 {[%emt 0:00:30]} O-O {[%emt 0:01:00]} 7. Nf3 {[%emt 0:00:30]} d5 {[%emt 0:01:30]} 8. e5 {[%emt 0:08:30]} Ne8 {[%emt 0:00:30]} 9. O-O {[%emt 0:00:30]} Nc7 {[%emt 0:01:30]} 10. Bxc6 $11 {[%emt 0:01:30]} bxc6 {[%emt 0:00:30]} 11. Nc2 {[%emt 0:00:00]} Rb8 {[%emt 0:00:30]} 12. d4 {[%emt 0:01:00]} cxd4 {[%emt 0:16:30]} 13. Ncxd4 {[%emt 0:02:30]} Bd7 {[%emt 0:00:30]} 14. Qa4 {[%emt 0:08:30]} c5 {[%emt 0:02:30]} 15. Nc6 {[%emt 0:01:30]} Rb6 {[%emt 0:01:30]} 16. Nxe7+ {[%emt 0:04:30]} Qxe7 {[%emt 0:01:30]} 17. Qxa7 {[%emt 0:00:00]} Rc6 {[%emt 0:08:30]} 18. b4 {[%emt 0:03:00]} Nb5 {[%emt 0:02:30]} 19. Qa5 {[%emt 0:00:30]} Rcc8 {[%emt 0:05:30]} 20. Bd2 {[%emt 0:00:30]} Ra8 {[%emt 0:01:30]} 21. Qb6 {[%emt 0:01:30]} Rfb8 {[%emt 0:00:30]} 22. Qxc5 {[%emt 0:00:30]} Qxc5+ {[%emt 0:00:30]} 23. bxc5 {[%emt 0:00:30]} Bf8 {[%emt 0:00:00]} 24. Be3 {[%emt 0:00:30]} Nxc3 {[%emt 0:00:00]} 25. Rf2 {[%emt 0:00:00]} Rc8 {[%emt 0:06:30]} 26. Rc2 {[%emt 0:01:00]} Na4 {[%emt 0:00:00]} 27. Rac1 {[%emt 0:00:00]} Bf5 {[%emt 0:04:00]} 28. Rd2 {[%emt 0:00:00]} Be4 {[%emt 0:02:30]} 29. c6 {[%emt 0:05:30]} Ba3 {[%emt 0:00:00]} 30. Rf1 {[%emt 0:00:30]} Rxc6 {[%emt 0:02:00]} 31. Ng5 {[%emt 0:00:00]} Bc1 {[%emt 0:02:30]} 32. Nxe4 {[%emt 0:01:00]} dxe4 {[%emt 0:00:30]} 33. Re2 {[%emt 0:00:00]} Nc3 {[%emt 0:01:30]} 34. Ree1 {[%emt 0:00:00]} Bxe3+ {[%emt 0:00:30]} 35. Rxe3 {[%emt 0:00:30]} Rxa2 {[%emt 0:00:30]} 36. h4 {[%emt 0:00:30]} Rc4 {[%emt 0:04:30]} 37. Rfe1 {[%emt 0:01:30]} Nd5 {[%emt 0:01:30]} 38. Rxe4 {[%emt 0:00:30]} Rcc2 {[%emt 0:00:00]} 39. Rd4 {[%emt 0:00:30]} Rxg2+ {[%emt 0:01:00]} 40. Kh1 {[%emt 0:00:00]} Ne7 {[%emt 0:00:30]} 41. e6 {[%emt 0:01:00]} fxe6 {[%emt 0:00:30]} 42. Ra4 {[%emt 0:02:30]} Rh2+ {[%emt 0:01:30]} 43. Kg1 {[%emt 0:00:00]} Rag2+ {[%emt 0:00:30]} 44. Kf1 {[%emt 0:00:00]} Nf5 {[%emt 0:00:00]} 0-1